Workbook

Sheet الموردون
N1: في عمود الاسماء اكتب الاسماء الموجودة للموردين ف العمود b دون تكرار
C2: الموردون ودائنون | N2: في عمود الرصيد يكتب لي اخر رصيد للمورد في العمود f
N3: في عمود تاريخ اخر رصيد يكتب لي تارخ اخر رصيد للمورد
B4: الاسم | C4: التاريخ | D4: له | E4: عليه | F4: رصيد | G4: ملاحظات
B5: شادي | C5: 2019-02-01 | D5: 51250 | E5: 15000 | F5: =IF(B5="","",SUMPRODUCT($D$5:D5-$E$5:E5,--($B$5:B5=B5))) -> 36250 | I5: الاسم | J5: اخر رصيد | K5: تاريخ اخر رصيد
B6: شادي | C6: 2019-02-02 | E6: 2000 | F6: =IF(B6="","",SUMPRODUCT($D$5:D6-$E$5:E6,--($B$5:B6=B6))) -> 34250 | I6: شادي | J6: =IF($I6="","",INDEX($F$5:$F$100,MAX(IF($I6=$B$5:$B$100,ROW($B$5:$B$100)-ROW($B$5)+1)))) -> 30800 | K6: =IF($I6="","",INDEX($C$5:$C$100,MAX(IF($I6=$B$5:$B$100,ROW($B$5:$B$100)-ROW($B$5)+1)))) -> 2019-02-15
B7: شادي | C7: 2019-02-12 | E7: 2000 | F7: =IF(B7="","",SUMPRODUCT($D$5:D7-$E$5:E7,--($B$5:B7=B7))) -> 32250 | I7: محمد فرج | J7: =IF($I7="","",INDEX($F$5:$F$100,MAX(IF($I7=$B$5:$B$100,ROW($B$5:$B$100)-ROW($B$5)+1)))) -> 3650 | K7: =IF($I7="","",INDEX($C$5:$C$100,MAX(IF($I7=$B$5:$B$100,ROW($B$5:$B$100)-ROW($B$5)+1)))) -> 2019-02-12
B8: شادي | C8: 2019-02-15 | D8: 550 | E8: 2000 | F8: =IF(B8="","",SUMPRODUCT($D$5:D8-$E$5:E8,--($B$5:B8=B8))) -> 30800 | I8: فحم | J8: =IF($I8="","",INDEX($F$5:$F$100,MAX(IF($I8=$B$5:$B$100,ROW($B$5:$B$100)-ROW($B$5)+1)))) -> 510 | K8: =IF($I8="","",INDEX($C$5:$C$100,MAX(IF($I8=$B$5:$B$100,ROW($B$5:$B$100)-ROW($B$5)+1)))) -> 00:00:00
B9: محمد فرج | C9: 2019-02-13 | D9: 12150 | E9: 6500 | F9: =IF(B9="","",SUMPRODUCT($D$5:D9-$E$5:E9,--($B$5:B9=B9))) -> 5650 | G9: صيانة معدات | I9: ايس | J9: =IF($I9="","",INDEX($F$5:$F$100,MAX(IF($I9=$B$5:$B$100,ROW($B$5:$B$100)-ROW($B$5)+1)))) -> 0 | K9: =IF($I9="","",INDEX($C$5:$C$100,MAX(IF($I9=$B$5:$B$100,ROW($B$5:$B$100)-ROW($B$5)+1)))) -> 2019-02-17
B10: فحم | D10: 510 | F10: =IF(B10="","",SUMPRODUCT($D$5:D10-$E$5:E10,--($B$5:B10=B10))) -> 510 | I10: توفيق | J10: =IF($I10="","",INDEX($F$5:$F$100,MAX(IF($I10=$B$5:$B$100,ROW($B$5:$B$100)-ROW($B$5)+1)))) -> 4600 | K10: =IF($I10="","",INDEX($C$5:$C$100,MAX(IF($I10=$B$5:$B$100,ROW($B$5:$B$100)-ROW($B$5)+1)))) -> 2019-02-17
B11: ايس | C11: 2019-02-01 | D11: 840 | F11: =IF(B11="","",SUMPRODUCT($D$5:D11-$E$5:E11,--($B$5:B11=B11))) -> 840 | I11: محمد الطباخ | J11: =IF($I11="","",INDEX($F$5:$F$100,MAX(IF($I11=$B$5:$B$100,ROW($B$5:$B$100)-ROW($B$5)+1)))) -> 6575 | K11: =IF($I11="","",INDEX($C$5:$C$100,MAX(IF($I11=$B$5:$B$100,ROW($B$5:$B$100)-ROW($B$5)+1)))) -> 2019-02-14
B12: ايس | C12: 2019-02-06 | D12: 420 | F12: =IF(B12="","",SUMPRODUCT($D$5:D12-$E$5:E12,--($B$5:B12=B12))) -> 1260 | I12: حسن علي | J12: =IF($I12="","",INDEX($F$5:$F$100,MAX(IF($I12=$B$5:$B$100,ROW($B$5:$B$100)-ROW($B$5)+1)))) -> 2564 | K12: =IF($I12="","",INDEX($C$5:$C$100,MAX(IF($I12=$B$5:$B$100,ROW($B$5:$B$100)-ROW($B$5)+1)))) -> 2019-01-29
B13: ايس | C13: 2019-02-12 | D13: 640 | F13: =IF(B13="","",SUMPRODUCT($D$5:D13-$E$5:E13,--($B$5:B13=B13))) -> 1900 | I13: الفريدة | J13: =IF($I13="","",INDEX($F$5:$F$100,MAX(IF($I13=$B$5:$B$100,ROW($B$5:$B$100)-ROW($B$5)+1)))) -> 4110.5 | K13: =IF($I13="","",INDEX($C$5:$C$100,MAX(IF($I13=$B$5:$B$100,ROW($B$5:$B$100)-ROW($B$5)+1)))) -> 2019-02-15
B14: توفيق | C14: 2019-02-15 | D14: 10600 | E14: 4000 | F14: =IF(B14="","",SUMPRODUCT($D$5:D14-$E$5:E14,--($B$5:B14=B14))) -> 6600 | I14: تبارك | J14: =IF($I14="","",INDEX($F$5:$F$100,MAX(IF($I14=$B$5:$B$100,ROW($B$5:$B$100)-ROW($B$5)+1)))) -> 0 | K14: =IF($I14="","",INDEX($C$5:$C$100,MAX(IF($I14=$B$5:$B$100,ROW($B$5:$B$100)-ROW($B$5)+1)))) -> 2019-02-17
B15: محمد الطباخ | C15: 2019-02-05 | D15: 7575 | F15: =IF(B15="","",SUMPRODUCT($D$5:D15-$E$5:E15,--($B$5:B15=B15))) -> 7575 | I15: محمد مصطفي | J15: =IF($I15="","",INDEX($F$5:$F$100,MAX(IF($I15=$B$5:$B$100,ROW($B$5:$B$100)-ROW($B$5)+1)))) -> 12000 | K15: =IF($I15="","",INDEX($C$5:$C$100,MAX(IF($I15=$B$5:$B$100,ROW($B$5:$B$100)-ROW($B$5)+1)))) -> 2019-02-01
B16: محمد الطباخ | C16: 2019-02-12 | D16: 700 | E16: 2000 | F16: =IF(B16="","",SUMPRODUCT($D$5:D16-$E$5:E16,--($B$5:B16=B16))) -> 6275 | I16: ترتات | J16: =IF($I16="","",INDEX($F$5:$F$100,MAX(IF($I16=$B$5:$B$100,ROW($B$5:$B$100)-ROW($B$5)+1)))) -> 425 | K16: =IF($I16="","",INDEX($C$5:$C$100,MAX(IF($I16=$B$5:$B$100,ROW($B$5:$B$100)-ROW($B$5)+1)))) -> 2019-02-16
B17: محمد الطباخ | C17: 2019-02-14 | D17: 300 | F17: =IF(B17="","",SUMPRODUCT($D$5:D17-$E$5:E17,--($B$5:B17=B17))) -> 6575 | I17: جبرائيل | J17: =IF($I17="","",INDEX($F$5:$F$100,MAX(IF($I17=$B$5:$B$100,ROW($B$5:$B$100)-ROW($B$5)+1)))) -> 731 | K17: =IF($I17="","",INDEX($C$5:$C$100,MAX(IF($I17=$B$5:$B$100,ROW($B$5:$B$100)-ROW($B$5)+1)))) -> 2019-02-17
B18: حسن علي | C18: 2019-01-29 | D18: 4064 | E18: 1500 | F18: =IF(B18="","",SUMPRODUCT($D$5:D18-$E$5:E18,--($B$5:B18=B18))) -> 2564 | J18: =IF($I18="","",INDEX($F$5:$F$100,MAX(IF($I18=$B$5:$B$100,ROW($B$5:$B$100)-ROW($B$5)+1)))) ->  | K18: =IF($I18="","",INDEX($C$5:$C$100,MAX(IF($I18=$B$5:$B$100,ROW($B$5:$B$100)-ROW($B$5)+1)))) -> 
B19: الفريدة | C19: 2019-02-12 | D19: 2585.5 | E19: 400 | F19: =IF(B19="","",SUMPRODUCT($D$5:D19-$E$5:E19,--($B$5:B19=B19))) -> 2185.5 | G19: شيبوب | J19: =IF($I19="","",INDEX($F$5:$F$100,MAX(IF($I19=$B$5:$B$100,ROW($B$5:$B$100)-ROW($B$5)+1)))) ->  | K19: =IF($I19="","",INDEX($C$5:$C$100,MAX(IF($I19=$B$5:$B$100,ROW($B$5:$B$100)-ROW($B$5)+1)))) -> 
B20: الفريدة | C20: 2019-02-15 | D20: 1925 | F20: =IF(B20="","",SUMPRODUCT($D$5:D20-$E$5:E20,--($B$5:B20=B20))) -> 4110.5 | J20: =IF($I20="","",INDEX($F$5:$F$100,MAX(IF($I20=$B$5:$B$100,ROW($B$5:$B$100)-ROW($B$5)+1)))) ->  | K20: =IF($I20="","",INDEX($C$5:$C$100,MAX(IF($I20=$B$5:$B$100,ROW($B$5:$B$100)-ROW($B$5)+1)))) -> 
B21: تبارك | C21: 2019-02-15 | D21: 5291 | F21: =IF(B21="","",SUMPRODUCT($D$5:D21-$E$5:E21,--($B$5:B21=B21))) -> 5291 | J21: =IF($I21="","",INDEX($F$5:$F$100,MAX(IF($I21=$B$5:$B$100,ROW($B$5:$B$100)-ROW($B$5)+1)))) ->  | K21: =IF($I21="","",INDEX($C$5:$C$100,MAX(IF($I21=$B$5:$B$100,ROW($B$5:$B$100)-ROW($B$5)+1)))) -> 
B22: تبارك | C22: 2019-02-16 | E22: 3000 | F22: =IF(B22="","",SUMPRODUCT($D$5:D22-$E$5:E22,--($B$5:B22=B22))) -> 2291 | G22: مجمد الحريري | J22: =IF($I22="","",INDEX($F$5:$F$100,MAX(IF($I22=$B$5:$B$100,ROW($B$5:$B$100)-ROW($B$5)+1)))) ->  | K22: =IF($I22="","",INDEX($C$5:$C$100,MAX(IF($I22=$B$5:$B$100,ROW($B$5:$B$100)-ROW($B$5)+1)))) -> 
B23: محمد فرج | C23: 2019-02-12 | E23: 1000 | F23: =IF(B23="","",SUMPRODUCT($D$5:D23-$E$5:E23,--($B$5:B23=B23))) -> 4650 | J23: =IF($I23="","",INDEX($F$5:$F$100,MAX(IF($I23=$B$5:$B$100,ROW($B$5:$B$100)-ROW($B$5)+1)))) ->  | K23: =IF($I23="","",INDEX($C$5:$C$100,MAX(IF($I23=$B$5:$B$100,ROW($B$5:$B$100)-ROW($B$5)+1)))) -> 
B24: محمد مصطفي | C24: 2019-02-01 | D24: 17800 | E24: 5800 | F24: =IF(B24="","",SUMPRODUCT($D$5:D24-$E$5:E24,--($B$5:B24=B24))) -> 12000 | G24: طفيات | J24: =IF($I24="","",INDEX($F$5:$F$100,MAX(IF($I24=$B$5:$B$100,ROW($B$5:$B$100)-ROW($B$5)+1)))) ->  | K24: =IF($I24="","",INDEX($C$5:$C$100,MAX(IF($I24=$B$5:$B$100,ROW($B$5:$B$100)-ROW($B$5)+1)))) -> 
B25: ترتات | C25: 2019-02-14 | D25: 200 | F25: =IF(B25="","",SUMPRODUCT($D$5:D25-$E$5:E25,--($B$5:B25=B25))) -> 200 | J25: =IF($I25="","",INDEX($F$5:$F$100,MAX(IF($I25=$B$5:$B$100,ROW($B$5:$B$100)-ROW($B$5)+1)))) ->  | K25: =IF($I25="","",INDEX($C$5:$C$100,MAX(IF($I25=$B$5:$B$100,ROW($B$5:$B$100)-ROW($B$5)+1)))) -> 
B26: ترتات | C26: 2019-02-16 | D26: 225 | F26: =IF(B26="","",SUMPRODUCT($D$5:D26-$E$5:E26,--($B$5:B26=B26))) -> 425 | J26: =IF($I26="","",INDEX($F$5:$F$100,MAX(IF($I26=$B$5:$B$100,ROW($B$5:$B$100)-ROW($B$5)+1)))) ->  | K26: =IF($I26="","",INDEX($C$5:$C$100,MAX(IF($I26=$B$5:$B$100,ROW($B$5:$B$100)-ROW($B$5)+1)))) -> 
B27: محمد فرج | C27: 2019-02-12 | E27: 1000 | F27: =IF(B27="","",SUMPRODUCT($D$5:D27-$E$5:E27,--($B$5:B27=B27))) -> 3650 | J27: =IF($I27="","",INDEX($F$5:$F$100,MAX(IF($I27=$B$5:$B$100,ROW($B$5:$B$100)-ROW($B$5)+1)))) ->  | K27: =IF($I27="","",INDEX($C$5:$C$100,MAX(IF($I27=$B$5:$B$100,ROW($B$5:$B$100)-ROW($B$5)+1)))) -> 
B28: تبارك | C28: 2019-02-17 | E28: 2291 | F28: =IF(B28="","",SUMPRODUCT($D$5:D28-$E$5:E28,--($B$5:B28=B28))) -> 0 | J28: =IF($I28="","",INDEX($F$5:$F$100,MAX(IF($I28=$B$5:$B$100,ROW($B$5:$B$100)-ROW($B$5)+1)))) ->  | K28: =IF($I28="","",INDEX($C$5:$C$100,MAX(IF($I28=$B$5:$B$100,ROW($B$5:$B$100)-ROW($B$5)+1)))) -> 
B29: ايس | C29: 2019-02-16 | E29: 1000 | F29: =IF(B29="","",SUMPRODUCT($D$5:D29-$E$5:E29,--($B$5:B29=B29))) -> 900 | J29: =IF($I29="","",INDEX($F$5:$F$100,MAX(IF($I29=$B$5:$B$100,ROW($B$5:$B$100)-ROW($B$5)+1)))) ->  | K29: =IF($I29="","",INDEX($C$5:$C$100,MAX(IF($I29=$B$5:$B$100,ROW($B$5:$B$100)-ROW($B$5)+1)))) -> 
B30: ايس | C30: 2019-02-17 | E30: 900 | F30: =IF(B30="","",SUMPRODUCT($D$5:D30-$E$5:E30,--($B$5:B30=B30))) -> 0 | J30: =IF($I30="","",INDEX($F$5:$F$100,MAX(IF($I30=$B$5:$B$100,ROW($B$5:$B$100)-ROW($B$5)+1)))) ->  | K30: =IF($I30="","",INDEX($C$5:$C$100,MAX(IF($I30=$B$5:$B$100,ROW($B$5:$B$100)-ROW($B$5)+1)))) -> 
B31: توفيق | C31: 2019-02-17 | E31: 2000 | F31: =IF(B31="","",SUMPRODUCT($D$5:D31-$E$5:E31,--($B$5:B31=B31))) -> 4600 | J31: =IF($I31="","",INDEX($F$5:$F$100,MAX(IF($I31=$B$5:$B$100,ROW($B$5:$B$100)-ROW($B$5)+1)))) ->  | K31: =IF($I31="","",INDEX($C$5:$C$100,MAX(IF($I31=$B$5:$B$100,ROW($B$5:$B$100)-ROW($B$5)+1)))) -> 
B32: جبرائيل | C32: 2019-02-17 | D32: 1731 | E32: 1000 | F32: =IF(B32="","",SUMPRODUCT($D$5:D32-$E$5:E32,--($B$5:B32=B32))) -> 731 | J32: =IF($I32="","",INDEX($F$5:$F$100,MAX(IF($I32=$B$5:$B$100,ROW($B$5:$B$100)-ROW($B$5)+1)))) ->  | K32: =IF($I32="","",INDEX($C$5:$C$100,MAX(IF($I32=$B$5:$B$100,ROW($B$5:$B$100)-ROW($B$5)+1)))) -> 
F33: =IF(B33="","",SUMPRODUCT($D$5:D33-$E$5:E33,--($B$5:B33=B33))) ->  | J33: =IF($I33="","",INDEX($F$5:$F$100,MAX(IF($I33=$B$5:$B$100,ROW($B$5:$B$100)-ROW($B$5)+1)))) ->  | K33: =IF($I33="","",INDEX($C$5:$C$100,MAX(IF($I33=$B$5:$B$100,ROW($B$5:$B$100)-ROW($B$5)+1)))) -> 
F34: =IF(B34="","",SUMPRODUCT($D$5:D34-$E$5:E34,--($B$5:B34=B34))) ->  | J34: =IF($I34="","",INDEX($F$5:$F$100,MAX(IF($I34=$B$5:$B$100,ROW($B$5:$B$100)-ROW($B$5)+1)))) ->  | K34: =IF($I34="","",INDEX($C$5:$C$100,MAX(IF($I34=$B$5:$B$100,ROW($B$5:$B$100)-ROW($B$5)+1)))) -> 
F35: =IF(B35="","",SUMPRODUCT($D$5:D35-$E$5:E35,--($B$5:B35=B35))) ->  | J35: =IF($I35="","",INDEX($F$5:$F$100,MAX(IF($I35=$B$5:$B$100,ROW($B$5:$B$100)-ROW($B$5)+1)))) ->  | K35: =IF($I35="","",INDEX($C$5:$C$100,MAX(IF($I35=$B$5:$B$100,ROW($B$5:$B$100)-ROW($B$5)+1)))) -> 
F36: =IF(B36="","",SUMPRODUCT($D$5:D36-$E$5:E36,--($B$5:B36=B36))) ->  | J36: =IF($I36="","",INDEX($F$5:$F$100,MAX(IF($I36=$B$5:$B$100,ROW($B$5:$B$100)-ROW($B$5)+1)))) ->  | K36: =IF($I36="","",INDEX($C$5:$C$100,MAX(IF($I36=$B$5:$B$100,ROW($B$5:$B$100)-ROW($B$5)+1)))) -> 
F37: =IF(B37="","",SUMPRODUCT($D$5:D37-$E$5:E37,--($B$5:B37=B37))) ->  | J37: =IF($I37="","",INDEX($F$5:$F$100,MAX(IF($I37=$B$5:$B$100,ROW($B$5:$B$100)-ROW($B$5)+1)))) ->  | K37: =IF($I37="","",INDEX($C$5:$C$100,MAX(IF($I37=$B$5:$B$100,ROW($B$5:$B$100)-ROW($B$5)+1)))) -> 
F38: =IF(B38="","",SUMPRODUCT($D$5:D38-$E$5:E38,--($B$5:B38=B38))) ->  | J38: =IF($I38="","",INDEX($F$5:$F$100,MAX(IF($I38=$B$5:$B$100,ROW($B$5:$B$100)-ROW($B$5)+1)))) ->  | K38: =IF($I38="","",INDEX($C$5:$C$100,MAX(IF($I38=$B$5:$B$100,ROW($B$5:$B$100)-ROW($B$5)+1)))) -> 
B39: Total | D39: =SUBTOTAL(109,D5:D38) -> 119356.5 | E39: =SUBTOTAL(109,E5:E38) -> 53391 | F39: =D39-E39 -> 65965.5 | J39: =IF($I39="","",INDEX($F$5:$F$100,MAX(IF($I39=$B$5:$B$100,ROW($B$5:$B$100)-ROW($B$5)+1)))) ->  | K39: =IF($I39="","",INDEX($C$5:$C$100,MAX(IF($I39=$B$5:$B$100,ROW($B$5:$B$100)-ROW($B$5)+1)))) -> 
J40: =IF($I40="","",INDEX($F$5:$F$100,MAX(IF($I40=$B$5:$B$100,ROW($B$5:$B$100)-ROW($B$5)+1)))) ->  | K40: =IF($I40="","",INDEX($C$5:$C$100,MAX(IF($I40=$B$5:$B$100,ROW($B$5:$B$100)-ROW($B$5)+1)))) -> 
J41: =IF($I41="","",INDEX($F$5:$F$100,MAX(IF($I41=$B$5:$B$100,ROW($B$5:$B$100)-ROW($B$5)+1)))) ->  | K41: =IF($I41="","",INDEX($C$5:$C$100,MAX(IF($I41=$B$5:$B$100,ROW($B$5:$B$100)-ROW($B$5)+1)))) -> 
J42: =IF($I42="","",INDEX($F$5:$F$100,MAX(IF($I42=$B$5:$B$100,ROW($B$5:$B$100)-ROW($B$5)+1)))) ->  | K42: =IF($I42="","",INDEX($C$5:$C$100,MAX(IF($I42=$B$5:$B$100,ROW($B$5:$B$100)-ROW($B$5)+1)))) -> 
J43: =IF($I43="","",INDEX($F$5:$F$100,MAX(IF($I43=$B$5:$B$100,ROW($B$5:$B$100)-ROW($B$5)+1)))) ->  | K43: =IF($I43="","",INDEX($C$5:$C$100,MAX(IF($I43=$B$5:$B$100,ROW($B$5:$B$100)-ROW($B$5)+1)))) -> 
J44: =IF($I44="","",INDEX($F$5:$F$100,MAX(IF($I44=$B$5:$B$100,ROW($B$5:$B$100)-ROW($B$5)+1)))) ->  | K44: =IF($I44="","",INDEX($C$5:$C$100,MAX(IF($I44=$B$5:$B$100,ROW($B$5:$B$100)-ROW($B$5)+1)))) -> 
J45: =IF($I45="","",INDEX($F$5:$F$100,MAX(IF($I45=$B$5:$B$100,ROW($B$5:$B$100)-ROW($B$5)+1)))) ->  | K45: =IF($I45="","",INDEX($C$5:$C$100,MAX(IF($I45=$B$5:$B$100,ROW($B$5:$B$100)-ROW($B$5)+1)))) -> 
J46: =IF($I46="","",INDEX($F$5:$F$100,MAX(IF($I46=$B$5:$B$100,ROW($B$5:$B$100)-ROW($B$5)+1)))) ->  | K46: =IF($I46="","",INDEX($C$5:$C$100,MAX(IF($I46=$B$5:$B$100,ROW($B$5:$B$100)-ROW($B$5)+1)))) -> 
J47: =IF($I47="","",INDEX($F$5:$F$100,MAX(IF($I47=$B$5:$B$100,ROW($B$5:$B$100)-ROW($B$5)+1)))) ->  | K47: =IF($I47="","",INDEX($C$5:$C$100,MAX(IF($I47=$B$5:$B$100,ROW($B$5:$B$100)-ROW($B$5)+1)))) -> 
J48: =IF($I48="","",INDEX($F$5:$F$100,MAX(IF($I48=$B$5:$B$100,ROW($B$5:$B$100)-ROW($B$5)+1)))) ->  | K48: =IF($I48="","",INDEX($C$5:$C$100,MAX(IF($I48=$B$5:$B$100,ROW($B$5:$B$100)-ROW($B$5)+1)))) -> 
J49: =IF($I49="","",INDEX($F$5:$F$100,MAX(IF($I49=$B$5:$B$100,ROW($B$5:$B$100)-ROW($B$5)+1)))) ->  | K49: =IF($I49="","",INDEX($C$5:$C$100,MAX(IF($I49=$B$5:$B$100,ROW($B$5:$B$100)-ROW($B$5)+1)))) -> 
J50: =IF($I50="","",INDEX($F$5:$F$100,MAX(IF($I50=$B$5:$B$100,ROW($B$5:$B$100)-ROW($B$5)+1)))) ->  | K50: =IF($I50="","",INDEX($C$5:$C$100,MAX(IF($I50=$B$5:$B$100,ROW($B$5:$B$100)-ROW($B$5)+1)))) -> 
J51: =IF($I51="","",INDEX($F$5:$F$100,MAX(IF($I51=$B$5:$B$100,ROW($B$5:$B$100)-ROW($B$5)+1)))) ->  | K51: =IF($I51="","",INDEX($C$5:$C$100,MAX(IF($I51=$B$5:$B$100,ROW($B$5:$B$100)-ROW($B$5)+1)))) -> 
J52: =IF($I52="","",INDEX($F$5:$F$100,MAX(IF($I52=$B$5:$B$100,ROW($B$5:$B$100)-ROW($B$5)+1)))) ->  | K52: =IF($I52="","",INDEX($C$5:$C$100,MAX(IF($I52=$B$5:$B$100,ROW($B$5:$B$100)-ROW($B$5)+1)))) -> 
J53: =IF($I53="","",INDEX($F$5:$F$100,MAX(IF($I53=$B$5:$B$100,ROW($B$5:$B$100)-ROW($B$5)+1)))) ->  | K53: =IF($I53="","",INDEX($C$5:$C$100,MAX(IF($I53=$B$5:$B$100,ROW($B$5:$B$100)-ROW($B$5)+1)))) -> 
J54: =IF($I54="","",INDEX($F$5:$F$100,MAX(IF($I54=$B$5:$B$100,ROW($B$5:$B$100)-ROW($B$5)+1)))) ->  | K54: =IF($I54="","",INDEX($C$5:$C$100,MAX(IF($I54=$B$5:$B$100,ROW($B$5:$B$100)-ROW($B$5)+1)))) -> 
J55: =IF($I55="","",INDEX($F$5:$F$100,MAX(IF($I55=$B$5:$B$100,ROW($B$5:$B$100)-ROW($B$5)+1)))) ->  | K55: =IF($I55="","",INDEX($C$5:$C$100,MAX(IF($I55=$B$5:$B$100,ROW($B$5:$B$100)-ROW($B$5)+1)))) -> 
J56: =IF($I56="","",INDEX($F$5:$F$100,MAX(IF($I56=$B$5:$B$100,ROW($B$5:$B$100)-ROW($B$5)+1)))) ->  | K56: =IF($I56="","",INDEX($C$5:$C$100,MAX(IF($I56=$B$5:$B$100,ROW($B$5:$B$100)-ROW($B$5)+1)))) -> 
J57: =IF($I57="","",INDEX($F$5:$F$100,MAX(IF($I57=$B$5:$B$100,ROW($B$5:$B$100)-ROW($B$5)+1)))) ->  | K57: =IF($I57="","",INDEX($C$5:$C$100,MAX(IF($I57=$B$5:$B$100,ROW($B$5:$B$100)-ROW($B$5)+1)))) -> 
J58: =IF($I58="","",INDEX($F$5:$F$100,MAX(IF($I58=$B$5:$B$100,ROW($B$5:$B$100)-ROW($B$5)+1)))) ->  | K58: =IF($I58="","",INDEX($C$5:$C$100,MAX(IF($I58=$B$5:$B$100,ROW($B$5:$B$100)-ROW($B$5)+1)))) -> 
J59: =IF($I59="","",INDEX($F$5:$F$100,MAX(IF($I59=$B$5:$B$100,ROW($B$5:$B$100)-ROW($B$5)+1)))) ->  | K59: =IF($I59="","",INDEX($C$5:$C$100,MAX(IF($I59=$B$5:$B$100,ROW($B$5:$B$100)-ROW($B$5)+1)))) -> 
J60: =IF($I60="","",INDEX($F$5:$F$100,MAX(IF($I60=$B$5:$B$100,ROW($B$5:$B$100)-ROW($B$5)+1)))) ->  | K60: =IF($I60="","",INDEX($C$5:$C$100,MAX(IF($I60=$B$5:$B$100,ROW($B$5:$B$100)-ROW($B$5)+1)))) -> 
J61: =IF($I61="","",INDEX($F$5:$F$100,MAX(IF($I61=$B$5:$B$100,ROW($B$5:$B$100)-ROW($B$5)+1)))) ->  | K61: =IF($I61="","",INDEX($C$5:$C$100,MAX(IF($I61=$B$5:$B$100,ROW($B$5:$B$100)-ROW($B$5)+1)))) -> 
J62: =IF($I62="","",INDEX($F$5:$F$100,MAX(IF($I62=$B$5:$B$100,ROW($B$5:$B$100)-ROW($B$5)+1)))) ->  | K62: =IF($I62="","",INDEX($C$5:$C$100,MAX(IF($I62=$B$5:$B$100,ROW($B$5:$B$100)-ROW($B$5)+1)))) -> 
J63: =IF($I63="","",INDEX($F$5:$F$100,MAX(IF($I63=$B$5:$B$100,ROW($B$5:$B$100)-ROW($B$5)+1)))) ->  | K63: =IF($I63="","",INDEX($C$5:$C$100,MAX(IF($I63=$B$5:$B$100,ROW($B$5:$B$100)-ROW($B$5)+1)))) -> 
J64: =IF($I64="","",INDEX($F$5:$F$100,MAX(IF($I64=$B$5:$B$100,ROW($B$5:$B$100)-ROW($B$5)+1)))) ->  | K64: =IF($I64="","",INDEX($C$5:$C$100,MAX(IF($I64=$B$5:$B$100,ROW($B$5:$B$100)-ROW($B$5)+1)))) -> 
J65: =IF($I65="","",INDEX($F$5:$F$100,MAX(IF($I65=$B$5:$B$100,ROW($B$5:$B$100)-ROW($B$5)+1)))) ->  | K65: =IF($I65="","",INDEX($C$5:$C$100,MAX(IF($I65=$B$5:$B$100,ROW($B$5:$B$100)-ROW($B$5)+1)))) -> 
J66: =IF($I66="","",INDEX($F$5:$F$100,MAX(IF($I66=$B$5:$B$100,ROW($B$5:$B$100)-ROW($B$5)+1)))) ->  | K66: =IF($I66="","",INDEX($C$5:$C$100,MAX(IF($I66=$B$5:$B$100,ROW($B$5:$B$100)-ROW($B$5)+1)))) -> 
J67: =IF($I67="","",INDEX($F$5:$F$100,MAX(IF($I67=$B$5:$B$100,ROW($B$5:$B$100)-ROW($B$5)+1)))) ->  | K67: =IF($I67="","",INDEX($C$5:$C$100,MAX(IF($I67=$B$5:$B$100,ROW($B$5:$B$100)-ROW($B$5)+1)))) -> 
J68: =IF($I68="","",INDEX($F$5:$F$100,MAX(IF($I68=$B$5:$B$100,ROW($B$5:$B$100)-ROW($B$5)+1)))) ->  | K68: =IF($I68="","",INDEX($C$5:$C$100,MAX(IF($I68=$B$5:$B$100,ROW($B$5:$B$100)-ROW($B$5)+1)))) -> 
J69: =IF($I69="","",INDEX($F$5:$F$100,MAX(IF($I69=$B$5:$B$100,ROW($B$5:$B$100)-ROW($B$5)+1)))) ->  | K69: =IF($I69="","",INDEX($C$5:$C$100,MAX(IF($I69=$B$5:$B$100,ROW($B$5:$B$100)-ROW($B$5)+1)))) -> 
J70: =IF($I70="","",INDEX($F$5:$F$100,MAX(IF($I70=$B$5:$B$100,ROW($B$5:$B$100)-ROW($B$5)+1)))) ->  | K70: =IF($I70="","",INDEX($C$5:$C$100,MAX(IF($I70=$B$5:$B$100,ROW($B$5:$B$100)-ROW($B$5)+1)))) -> 
J71: =IF($I71="","",INDEX($F$5:$F$100,MAX(IF($I71=$B$5:$B$100,ROW($B$5:$B$100)-ROW($B$5)+1)))) ->  | K71: =IF($I71="","",INDEX($C$5:$C$100,MAX(IF($I71=$B$5:$B$100,ROW($B$5:$B$100)-ROW($B$5)+1)))) -> 
J72: =IF($I72="","",INDEX($F$5:$F$100,MAX(IF($I72=$B$5:$B$100,ROW($B$5:$B$100)-ROW($B$5)+1)))) ->  | K72: =IF($I72="","",INDEX($C$5:$C$100,MAX(IF($I72=$B$5:$B$100,ROW($B$5:$B$100)-ROW($B$5)+1)))) -> 
J73: =IF($I73="","",INDEX($F$5:$F$100,MAX(IF($I73=$B$5:$B$100,ROW($B$5:$B$100)-ROW($B$5)+1)))) ->  | K73: =IF($I73="","",INDEX($C$5:$C$100,MAX(IF($I73=$B$5:$B$100,ROW($B$5:$B$100)-ROW($B$5)+1)))) -> 
J74: =IF($I74="","",INDEX($F$5:$F$100,MAX(IF($I74=$B$5:$B$100,ROW($B$5:$B$100)-ROW($B$5)+1)))) ->  | K74: =IF($I74="","",INDEX($C$5:$C$100,MAX(IF($I74=$B$5:$B$100,ROW($B$5:$B$100)-ROW($B$5)+1)))) -> 
J75: =IF($I75="","",INDEX($F$5:$F$100,MAX(IF($I75=$B$5:$B$100,ROW($B$5:$B$100)-ROW($B$5)+1)))) ->  | K75: =IF($I75="","",INDEX($C$5:$C$100,MAX(IF($I75=$B$5:$B$100,ROW($B$5:$B$100)-ROW($B$5)+1)))) -> 
J76: =IF($I76="","",INDEX($F$5:$F$100,MAX(IF($I76=$B$5:$B$100,ROW($B$5:$B$100)-ROW($B$5)+1)))) ->  | K76: =IF($I76="","",INDEX($C$5:$C$100,MAX(IF($I76=$B$5:$B$100,ROW($B$5:$B$100)-ROW($B$5)+1)))) -> 
J77: =IF($I77="","",INDEX($F$5:$F$100,MAX(IF($I77=$B$5:$B$100,ROW($B$5:$B$100)-ROW($B$5)+1)))) ->  | K77: =IF($I77="","",INDEX($C$5:$C$100,MAX(IF($I77=$B$5:$B$100,ROW($B$5:$B$100)-ROW($B$5)+1)))) -> 
J78: =IF($I78="","",INDEX($F$5:$F$100,MAX(IF($I78=$B$5:$B$100,ROW($B$5:$B$100)-ROW($B$5)+1)))) ->  | K78: =IF($I78="","",INDEX($C$5:$C$100,MAX(IF($I78=$B$5:$B$100,ROW($B$5:$B$100)-ROW($B$5)+1)))) -> 
J79: =IF($I79="","",INDEX($F$5:$F$100,MAX(IF($I79=$B$5:$B$100,ROW($B$5:$B$100)-ROW($B$5)+1)))) ->  | K79: =IF($I79="","",INDEX($C$5:$C$100,MAX(IF($I79=$B$5:$B$100,ROW($B$5:$B$100)-ROW($B$5)+1)))) -> 
J80: =IF($I80="","",INDEX($F$5:$F$100,MAX(IF($I80=$B$5:$B$100,ROW($B$5:$B$100)-ROW($B$5)+1)))) ->  | K80: =IF($I80="","",INDEX($C$5:$C$100,MAX(IF($I80=$B$5:$B$100,ROW($B$5:$B$100)-ROW($B$5)+1)))) -> 
J81: =IF($I81="","",INDEX($F$5:$F$100,MAX(IF($I81=$B$5:$B$100,ROW($B$5:$B$100)-ROW($B$5)+1)))) ->  | K81: =IF($I81="","",INDEX($C$5:$C$100,MAX(IF($I81=$B$5:$B$100,ROW($B$5:$B$100)-ROW($B$5)+1)))) -> 
J82: =IF($I82="","",INDEX($F$5:$F$100,MAX(IF($I82=$B$5:$B$100,ROW($B$5:$B$100)-ROW($B$5)+1)))) ->  | K82: =IF($I82="","",INDEX($C$5:$C$100,MAX(IF($I82=$B$5:$B$100,ROW($B$5:$B$100)-ROW($B$5)+1)))) -> 
J83: =IF($I83="","",INDEX($F$5:$F$100,MAX(IF($I83=$B$5:$B$100,ROW($B$5:$B$100)-ROW($B$5)+1)))) ->  | K83: =IF($I83="","",INDEX($C$5:$C$100,MAX(IF($I83=$B$5:$B$100,ROW($B$5:$B$100)-ROW($B$5)+1)))) -> 
J84: =IF($I84="","",INDEX($F$5:$F$100,MAX(IF($I84=$B$5:$B$100,ROW($B$5:$B$100)-ROW($B$5)+1)))) ->  | K84: =IF($I84="","",INDEX($C$5:$C$100,MAX(IF($I84=$B$5:$B$100,ROW($B$5:$B$100)-ROW($B$5)+1)))) -> 
J85: =IF($I85="","",INDEX($F$5:$F$100,MAX(IF($I85=$B$5:$B$100,ROW($B$5:$B$100)-ROW($B$5)+1)))) ->  | K85: =IF($I85="","",INDEX($C$5:$C$100,MAX(IF($I85=$B$5:$B$100,ROW($B$5:$B$100)-ROW($B$5)+1)))) -> 
J86: =IF($I86="","",INDEX($F$5:$F$100,MAX(IF($I86=$B$5:$B$100,ROW($B$5:$B$100)-ROW($B$5)+1)))) ->  | K86: =IF($I86="","",INDEX($C$5:$C$100,MAX(IF($I86=$B$5:$B$100,ROW($B$5:$B$100)-ROW($B$5)+1)))) -> 
J87: =IF($I87="","",INDEX($F$5:$F$100,MAX(IF($I87=$B$5:$B$100,ROW($B$5:$B$100)-ROW($B$5)+1)))) ->  | K87: =IF($I87="","",INDEX($C$5:$C$100,MAX(IF($I87=$B$5:$B$100,ROW($B$5:$B$100)-ROW($B$5)+1)))) -> 
J88: =IF($I88="","",INDEX($F$5:$F$100,MAX(IF($I88=$B$5:$B$100,ROW($B$5:$B$100)-ROW($B$5)+1)))) ->  | K88: =IF($I88="","",INDEX($C$5:$C$100,MAX(IF($I88=$B$5:$B$100,ROW($B$5:$B$100)-ROW($B$5)+1)))) -> 
J89: =IF($I89="","",INDEX($F$5:$F$100,MAX(IF($I89=$B$5:$B$100,ROW($B$5:$B$100)-ROW($B$5)+1)))) ->  | K89: =IF($I89="","",INDEX($C$5:$C$100,MAX(IF($I89=$B$5:$B$100,ROW($B$5:$B$100)-ROW($B$5)+1)))) -> 
J90: =IF($I90="","",INDEX($F$5:$F$100,MAX(IF($I90=$B$5:$B$100,ROW($B$5:$B$100)-ROW($B$5)+1)))) ->  | K90: =IF($I90="","",INDEX($C$5:$C$100,MAX(IF($I90=$B$5:$B$100,ROW($B$5:$B$100)-ROW($B$5)+1)))) -> 
J91: =IF($I91="","",INDEX($F$5:$F$100,MAX(IF($I91=$B$5:$B$100,ROW($B$5:$B$100)-ROW($B$5)+1)))) ->  | K91: =IF($I91="","",INDEX($C$5:$C$100,MAX(IF($I91=$B$5:$B$100,ROW($B$5:$B$100)-ROW($B$5)+1)))) -> 
J92: =IF($I92="","",INDEX($F$5:$F$100,MAX(IF($I92=$B$5:$B$100,ROW($B$5:$B$100)-ROW($B$5)+1)))) ->  | K92: =IF($I92="","",INDEX($C$5:$C$100,MAX(IF($I92=$B$5:$B$100,ROW($B$5:$B$100)-ROW($B$5)+1)))) -> 
J93: =IF($I93="","",INDEX($F$5:$F$100,MAX(IF($I93=$B$5:$B$100,ROW($B$5:$B$100)-ROW($B$5)+1)))) ->  | K93: =IF($I93="","",INDEX($C$5:$C$100,MAX(IF($I93=$B$5:$B$100,ROW($B$5:$B$100)-ROW($B$5)+1)))) -> 
J94: =IF($I94="","",INDEX($F$5:$F$100,MAX(IF($I94=$B$5:$B$100,ROW($B$5:$B$100)-ROW($B$5)+1)))) ->  | K94: =IF($I94="","",INDEX($C$5:$C$100,MAX(IF($I94=$B$5:$B$100,ROW($B$5:$B$100)-ROW($B$5)+1)))) -> 
J95: =IF($I95="","",INDEX($F$5:$F$100,MAX(IF($I95=$B$5:$B$100,ROW($B$5:$B$100)-ROW($B$5)+1)))) ->  | K95: =IF($I95="","",INDEX($C$5:$C$100,MAX(IF($I95=$B$5:$B$100,ROW($B$5:$B$100)-ROW($B$5)+1)))) -> 
J96: =IF($I96="","",INDEX($F$5:$F$100,MAX(IF($I96=$B$5:$B$100,ROW($B$5:$B$100)-ROW($B$5)+1)))) ->  | K96: =IF($I96="","",INDEX($C$5:$C$100,MAX(IF($I96=$B$5:$B$100,ROW($B$5:$B$100)-ROW($B$5)+1)))) -> 
J97: =IF($I97="","",INDEX($F$5:$F$100,MAX(IF($I97=$B$5:$B$100,ROW($B$5:$B$100)-ROW($B$5)+1)))) ->  | K97: =IF($I97="","",INDEX($C$5:$C$100,MAX(IF($I97=$B$5:$B$100,ROW($B$5:$B$100)-ROW($B$5)+1)))) -> 
J98: =IF($I98="","",INDEX($F$5:$F$100,MAX(IF($I98=$B$5:$B$100,ROW($B$5:$B$100)-ROW($B$5)+1)))) ->  | K98: =IF($I98="","",INDEX($C$5:$C$100,MAX(IF($I98=$B$5:$B$100,ROW($B$5:$B$100)-ROW($B$5)+1)))) -> 
J99: =IF($I99="","",INDEX($F$5:$F$100,MAX(IF($I99=$B$5:$B$100,ROW($B$5:$B$100)-ROW($B$5)+1)))) ->  | K99: =IF($I99="","",INDEX($C$5:$C$100,MAX(IF($I99=$B$5:$B$100,ROW($B$5:$B$100)-ROW($B$5)+1)))) -> 
J100: =IF($I100="","",INDEX($F$5:$F$100,MAX(IF($I100=$B$5:$B$100,ROW($B$5:$B$100)-ROW($B$5)+1)))) ->  | K100: =IF($I100="","",INDEX($C$5:$C$100,MAX(IF($I100=$B$5:$B$100,ROW($B$5:$B$100)-ROW($B$5)+1)))) -> 
J101: =IF($I101="","",INDEX($F$5:$F$100,MAX(IF($I101=$B$5:$B$100,ROW($B$5:$B$100)-ROW($B$5)+1)))) ->  | K101: =IF($I101="","",INDEX($C$5:$C$100,MAX(IF($I101=$B$5:$B$100,ROW($B$5:$B$100)-ROW($B$5)+1)))) -> 
J102: =IF($I102="","",INDEX($F$5:$F$100,MAX(IF($I102=$B$5:$B$100,ROW($B$5:$B$100)-ROW($B$5)+1)))) ->  | K102: =IF($I102="","",INDEX($C$5:$C$100,MAX(IF($I102=$B$5:$B$100,ROW($B$5:$B$100)-ROW($B$5)+1)))) -> 
J103: =IF($I103="","",INDEX($F$5:$F$100,MAX(IF($I103=$B$5:$B$100,ROW($B$5:$B$100)-ROW($B$5)+1)))) ->  | K103: =IF($I103="","",INDEX($C$5:$C$100,MAX(IF($I103=$B$5:$B$100,ROW($B$5:$B$100)-ROW($B$5)+1)))) -> 
J104: =IF($I104="","",INDEX($F$5:$F$100,MAX(IF($I104=$B$5:$B$100,ROW($B$5:$B$100)-ROW($B$5)+1)))) ->  | K104: =IF($I104="","",INDEX($C$5:$C$100,MAX(IF($I104=$B$5:$B$100,ROW($B$5:$B$100)-ROW($B$5)+1)))) -> 
J105: =IF($I105="","",INDEX($F$5:$F$100,MAX(IF($I105=$B$5:$B$100,ROW($B$5:$B$100)-ROW($B$5)+1)))) ->  | K105: =IF($I105="","",INDEX($C$5:$C$100,MAX(IF($I105=$B$5:$B$100,ROW($B$5:$B$100)-ROW($B$5)+1)))) -> 
J106: =IF($I106="","",INDEX($F$5:$F$100,MAX(IF($I106=$B$5:$B$100,ROW($B$5:$B$100)-ROW($B$5)+1)))) ->  | K106: =IF($I106="","",INDEX($C$5:$C$100,MAX(IF($I106=$B$5:$B$100,ROW($B$5:$B$100)-ROW($B$5)+1)))) -> 
J107: =IF($I107="","",INDEX($F$5:$F$100,MAX(IF($I107=$B$5:$B$100,ROW($B$5:$B$100)-ROW($B$5)+1)))) ->  | K107: =IF($I107="","",INDEX($C$5:$C$100,MAX(IF($I107=$B$5:$B$100,ROW($B$5:$B$100)-ROW($B$5)+1)))) -> 
J108: =IF($I108="","",INDEX($F$5:$F$100,MAX(IF($I108=$B$5:$B$100,ROW($B$5:$B$100)-ROW($B$5)+1)))) ->  | K108: =IF($I108="","",INDEX($C$5:$C$100,MAX(IF($I108=$B$5:$B$100,ROW($B$5:$B$100)-ROW($B$5)+1)))) -> 
J109: =IF($I109="","",INDEX($F$5:$F$100,MAX(IF($I109=$B$5:$B$100,ROW($B$5:$B$100)-ROW($B$5)+1)))) ->  | K109: =IF($I109="","",INDEX($C$5:$C$100,MAX(IF($I109=$B$5:$B$100,ROW($B$5:$B$100)-ROW($B$5)+1)))) -> 
J110: =IF($I110="","",INDEX($F$5:$F$100,MAX(IF($I110=$B$5:$B$100,ROW($B$5:$B$100)-ROW($B$5)+1)))) ->  | K110: =IF($I110="","",INDEX($C$5:$C$100,MAX(IF($I110=$B$5:$B$100,ROW($B$5:$B$100)-ROW($B$5)+1)))) -> 
J111: =IF($I111="","",INDEX($F$5:$F$100,MAX(IF($I111=$B$5:$B$100,ROW($B$5:$B$100)-ROW($B$5)+1)))) ->  | K111: =IF($I111="","",INDEX($C$5:$C$100,MAX(IF($I111=$B$5:$B$100,ROW($B$5:$B$100)-ROW($B$5)+1)))) -> 
J112: =IF($I112="","",INDEX($F$5:$F$100,MAX(IF($I112=$B$5:$B$100,ROW($B$5:$B$100)-ROW($B$5)+1)))) ->  | K112: =IF($I112="","",INDEX($C$5:$C$100,MAX(IF($I112=$B$5:$B$100,ROW($B$5:$B$100)-ROW($B$5)+1)))) -> 
J113: =IF($I113="","",INDEX($F$5:$F$100,MAX(IF($I113=$B$5:$B$100,ROW($B$5:$B$100)-ROW($B$5)+1)))) ->  | K113: =IF($I113="","",INDEX($C$5:$C$100,MAX(IF($I113=$B$5:$B$100,ROW($B$5:$B$100)-ROW($B$5)+1)))) -> 
J114: =IF($I114="","",INDEX($F$5:$F$100,MAX(IF($I114=$B$5:$B$100,ROW($B$5:$B$100)-ROW($B$5)+1)))) ->  | K114: =IF($I114="","",INDEX($C$5:$C$100,MAX(IF($I114=$B$5:$B$100,ROW($B$5:$B$100)-ROW($B$5)+1)))) -> 
J115: =IF($I115="","",INDEX($F$5:$F$100,MAX(IF($I115=$B$5:$B$100,ROW($B$5:$B$100)-ROW($B$5)+1)))) ->  | K115: =IF($I115="","",INDEX($C$5:$C$100,MAX(IF($I115=$B$5:$B$100,ROW($B$5:$B$100)-ROW($B$5)+1)))) -> 
J116: =IF($I116="","",INDEX($F$5:$F$100,MAX(IF($I116=$B$5:$B$100,ROW($B$5:$B$100)-ROW($B$5)+1)))) ->  | K116: =IF($I116="","",INDEX($C$5:$C$100,MAX(IF($I116=$B$5:$B$100,ROW($B$5:$B$100)-ROW($B$5)+1)))) -> 
J117: =IF($I117="","",INDEX($F$5:$F$100,MAX(IF($I117=$B$5:$B$100,ROW($B$5:$B$100)-ROW($B$5)+1)))) ->  | K117: =IF($I117="","",INDEX($C$5:$C$100,MAX(IF($I117=$B$5:$B$100,ROW($B$5:$B$100)-ROW($B$5)+1)))) -> 
J118: =IF($I118="","",INDEX($F$5:$F$100,MAX(IF($I118=$B$5:$B$100,ROW($B$5:$B$100)-ROW($B$5)+1)))) ->  | K118: =IF($I118="","",INDEX($C$5:$C$100,MAX(IF($I118=$B$5:$B$100,ROW($B$5:$B$100)-ROW($B$5)+1)))) -> 
J119: =IF($I119="","",INDEX($F$5:$F$100,MAX(IF($I119=$B$5:$B$100,ROW($B$5:$B$100)-ROW($B$5)+1)))) ->  | K119: =IF($I119="","",INDEX($C$5:$C$100,MAX(IF($I119=$B$5:$B$100,ROW($B$5:$B$100)-ROW($B$5)+1)))) -> 
J120: =IF($I120="","",INDEX($F$5:$F$100,MAX(IF($I120=$B$5:$B$100,ROW($B$5:$B$100)-ROW($B$5)+1)))) ->  | K120: =IF($I120="","",INDEX($C$5:$C$100,MAX(IF($I120=$B$5:$B$100,ROW($B$5:$B$100)-ROW($B$5)+1)))) -> 
J121: =IF($I121="","",INDEX($F$5:$F$100,MAX(IF($I121=$B$5:$B$100,ROW($B$5:$B$100)-ROW($B$5)+1)))) ->  | K121: =IF($I121="","",INDEX($C$5:$C$100,MAX(IF($I121=$B$5:$B$100,ROW($B$5:$B$100)-ROW($B$5)+1)))) -> 
J122: =IF($I122="","",INDEX($F$5:$F$100,MAX(IF($I122=$B$5:$B$100,ROW($B$5:$B$100)-ROW($B$5)+1)))) ->  | K122: =IF($I122="","",INDEX($C$5:$C$100,MAX(IF($I122=$B$5:$B$100,ROW($B$5:$B$100)-ROW($B$5)+1)))) -> 
J123: =IF($I123="","",INDEX($F$5:$F$100,MAX(IF($I123=$B$5:$B$100,ROW($B$5:$B$100)-ROW($B$5)+1)))) ->  | K123: =IF($I123="","",INDEX($C$5:$C$100,MAX(IF($I123=$B$5:$B$100,ROW($B$5:$B$100)-ROW($B$5)+1)))) -> 
J124: =IF($I124="","",INDEX($F$5:$F$100,MAX(IF($I124=$B$5:$B$100,ROW($B$5:$B$100)-ROW($B$5)+1)))) ->  | K124: =IF($I124="","",INDEX($C$5:$C$100,MAX(IF($I124=$B$5:$B$100,ROW($B$5:$B$100)-ROW($B$5)+1)))) -> 
J125: =IF($I125="","",INDEX($F$5:$F$100,MAX(IF($I125=$B$5:$B$100,ROW($B$5:$B$100)-ROW($B$5)+1)))) ->  | K125: =IF($I125="","",INDEX($C$5:$C$100,MAX(IF($I125=$B$5:$B$100,ROW($B$5:$B$100)-ROW($B$5)+1)))) -> 
J126: =IF($I126="","",INDEX($F$5:$F$100,MAX(IF($I126=$B$5:$B$100,ROW($B$5:$B$100)-ROW($B$5)+1)))) ->  | K126: =IF($I126="","",INDEX($C$5:$C$100,MAX(IF($I126=$B$5:$B$100,ROW($B$5:$B$100)-ROW($B$5)+1)))) -> 
J127: =IF($I127="","",INDEX($F$5:$F$100,MAX(IF($I127=$B$5:$B$100,ROW($B$5:$B$100)-ROW($B$5)+1)))) ->  | K127: =IF($I127="","",INDEX($C$5:$C$100,MAX(IF($I127=$B$5:$B$100,ROW($B$5:$B$100)-ROW($B$5)+1)))) -> 
J128: =IF($I128="","",INDEX($F$5:$F$100,MAX(IF($I128=$B$5:$B$100,ROW($B$5:$B$100)-ROW($B$5)+1)))) ->  | K128: =IF($I128="","",INDEX($C$5:$C$100,MAX(IF($I128=$B$5:$B$100,ROW($B$5:$B$100)-ROW($B$5)+1)))) -> 
J129: =IF($I129="","",INDEX($F$5:$F$100,MAX(IF($I129=$B$5:$B$100,ROW($B$5:$B$100)-ROW($B$5)+1)))) ->  | K129: =IF($I129="","",INDEX($C$5:$C$100,MAX(IF($I129=$B$5:$B$100,ROW($B$5:$B$100)-ROW($B$5)+1)))) -> 
J130: =IF($I130="","",INDEX($F$5:$F$100,MAX(IF($I130=$B$5:$B$100,ROW($B$5:$B$100)-ROW($B$5)+1)))) ->  | K130: =IF($I130="","",INDEX($C$5:$C$100,MAX(IF($I130=$B$5:$B$100,ROW($B$5:$B$100)-ROW($B$5)+1)))) -> 
J131: =IF($I131="","",INDEX($F$5:$F$100,MAX(IF($I131=$B$5:$B$100,ROW($B$5:$B$100)-ROW($B$5)+1)))) ->  | K131: =IF($I131="","",INDEX($C$5:$C$100,MAX(IF($I131=$B$5:$B$100,ROW($B$5:$B$100)-ROW($B$5)+1)))) -> 
J132: =IF($I132="","",INDEX($F$5:$F$100,MAX(IF($I132=$B$5:$B$100,ROW($B$5:$B$100)-ROW($B$5)+1)))) ->  | K132: =IF($I132="","",INDEX($C$5:$C$100,MAX(IF($I132=$B$5:$B$100,ROW($B$5:$B$100)-ROW($B$5)+1)))) -> 
J133: =IF($I133="","",INDEX($F$5:$F$100,MAX(IF($I133=$B$5:$B$100,ROW($B$5:$B$100)-ROW($B$5)+1)))) ->  | K133: =IF($I133="","",INDEX($C$5:$C$100,MAX(IF($I133=$B$5:$B$100,ROW($B$5:$B$100)-ROW($B$5)+1)))) -> 
J134: =IF($I134="","",INDEX($F$5:$F$100,MAX(IF($I134=$B$5:$B$100,ROW($B$5:$B$100)-ROW($B$5)+1)))) ->  | K134: =IF($I134="","",INDEX($C$5:$C$100,MAX(IF($I134=$B$5:$B$100,ROW($B$5:$B$100)-ROW($B$5)+1)))) -> 
J135: =IF($I135="","",INDEX($F$5:$F$100,MAX(IF($I135=$B$5:$B$100,ROW($B$5:$B$100)-ROW($B$5)+1)))) ->  | K135: =IF($I135="","",INDEX($C$5:$C$100,MAX(IF($I135=$B$5:$B$100,ROW($B$5:$B$100)-ROW($B$5)+1)))) -> 
J136: =IF($I136="","",INDEX($F$5:$F$100,MAX(IF($I136=$B$5:$B$100,ROW($B$5:$B$100)-ROW($B$5)+1)))) ->  | K136: =IF($I136="","",INDEX($C$5:$C$100,MAX(IF($I136=$B$5:$B$100,ROW($B$5:$B$100)-ROW($B$5)+1)))) -> 
J137: =IF($I137="","",INDEX($F$5:$F$100,MAX(IF($I137=$B$5:$B$100,ROW($B$5:$B$100)-ROW($B$5)+1)))) ->  | K137: =IF($I137="","",INDEX($C$5:$C$100,MAX(IF($I137=$B$5:$B$100,ROW($B$5:$B$100)-ROW($B$5)+1)))) -> 
J138: =IF($I138="","",INDEX($F$5:$F$100,MAX(IF($I138=$B$5:$B$100,ROW($B$5:$B$100)-ROW($B$5)+1)))) ->  | K138: =IF($I138="","",INDEX($C$5:$C$100,MAX(IF($I138=$B$5:$B$100,ROW($B$5:$B$100)-ROW($B$5)+1)))) -> 
J139: =IF($I139="","",INDEX($F$5:$F$100,MAX(IF($I139=$B$5:$B$100,ROW($B$5:$B$100)-ROW($B$5)+1)))) ->  | K139: =IF($I139="","",INDEX($C$5:$C$100,MAX(IF($I139=$B$5:$B$100,ROW($B$5:$B$100)-ROW($B$5)+1)))) -> 
J140: =IF($I140="","",INDEX($F$5:$F$100,MAX(IF($I140=$B$5:$B$100,ROW($B$5:$B$100)-ROW($B$5)+1)))) ->  | K140: =IF($I140="","",INDEX($C$5:$C$100,MAX(IF($I140=$B$5:$B$100,ROW($B$5:$B$100)-ROW($B$5)+1)))) -> 
J141: =IF($I141="","",INDEX($F$5:$F$100,MAX(IF($I141=$B$5:$B$100,ROW($B$5:$B$100)-ROW($B$5)+1)))) ->  | K141: =IF($I141="","",INDEX($C$5:$C$100,MAX(IF($I141=$B$5:$B$100,ROW($B$5:$B$100)-ROW($B$5)+1)))) -> 
J142: =IF($I142="","",INDEX($F$5:$F$100,MAX(IF($I142=$B$5:$B$100,ROW($B$5:$B$100)-ROW($B$5)+1)))) ->  | K142: =IF($I142="","",INDEX($C$5:$C$100,MAX(IF($I142=$B$5:$B$100,ROW($B$5:$B$100)-ROW($B$5)+1)))) -> 
J143: =IF($I143="","",INDEX($F$5:$F$100,MAX(IF($I143=$B$5:$B$100,ROW($B$5:$B$100)-ROW($B$5)+1)))) ->  | K143: =IF($I143="","",INDEX($C$5:$C$100,MAX(IF($I143=$B$5:$B$100,ROW($B$5:$B$100)-ROW($B$5)+1)))) -> 
J144: =IF($I144="","",INDEX($F$5:$F$100,MAX(IF($I144=$B$5:$B$100,ROW($B$5:$B$100)-ROW($B$5)+1)))) ->  | K144: =IF($I144="","",INDEX($C$5:$C$100,MAX(IF($I144=$B$5:$B$100,ROW($B$5:$B$100)-ROW($B$5)+1)))) -> 
J145: =IF($I145="","",INDEX($F$5:$F$100,MAX(IF($I145=$B$5:$B$100,ROW($B$5:$B$100)-ROW($B$5)+1)))) ->  | K145: =IF($I145="","",INDEX($C$5:$C$100,MAX(IF($I145=$B$5:$B$100,ROW($B$5:$B$100)-ROW($B$5)+1)))) -> 
J146: =IF($I146="","",INDEX($F$5:$F$100,MAX(IF($I146=$B$5:$B$100,ROW($B$5:$B$100)-ROW($B$5)+1)))) ->  | K146: =IF($I146="","",INDEX($C$5:$C$100,MAX(IF($I146=$B$5:$B$100,ROW($B$5:$B$100)-ROW($B$5)+1)))) -> 
J147: =IF($I147="","",INDEX($F$5:$F$100,MAX(IF($I147=$B$5:$B$100,ROW($B$5:$B$100)-ROW($B$5)+1)))) ->  | K147: =IF($I147="","",INDEX($C$5:$C$100,MAX(IF($I147=$B$5:$B$100,ROW($B$5:$B$100)-ROW($B$5)+1)))) -> 
J148: =IF($I148="","",INDEX($F$5:$F$100,MAX(IF($I148=$B$5:$B$100,ROW($B$5:$B$100)-ROW($B$5)+1)))) ->  | K148: =IF($I148="","",INDEX($C$5:$C$100,MAX(IF($I148=$B$5:$B$100,ROW($B$5:$B$100)-ROW($B$5)+1)))) -> 
J149: =IF($I149="","",INDEX($F$5:$F$100,MAX(IF($I149=$B$5:$B$100,ROW($B$5:$B$100)-ROW($B$5)+1)))) ->  | K149: =IF($I149="","",INDEX($C$5:$C$100,MAX(IF($I149=$B$5:$B$100,ROW($B$5:$B$100)-ROW($B$5)+1)))) -> 
J150: =IF($I150="","",INDEX($F$5:$F$100,MAX(IF($I150=$B$5:$B$100,ROW($B$5:$B$100)-ROW($B$5)+1)))) ->  | K150: =IF($I150="","",INDEX($C$5:$C$100,MAX(IF($I150=$B$5:$B$100,ROW($B$5:$B$100)-ROW($B$5)+1)))) -> 
J151: =IF($I151="","",INDEX($F$5:$F$100,MAX(IF($I151=$B$5:$B$100,ROW($B$5:$B$100)-ROW($B$5)+1)))) ->  | K151: =IF($I151="","",INDEX($C$5:$C$100,MAX(IF($I151=$B$5:$B$100,ROW($B$5:$B$100)-ROW($B$5)+1)))) -> 
J152: =IF($I152="","",INDEX($F$5:$F$100,MAX(IF($I152=$B$5:$B$100,ROW($B$5:$B$100)-ROW($B$5)+1)))) ->  | K152: =IF($I152="","",INDEX($C$5:$C$100,MAX(IF($I152=$B$5:$B$100,ROW($B$5:$B$100)-ROW($B$5)+1)))) -> 
J153: =IF($I153="","",INDEX($F$5:$F$100,MAX(IF($I153=$B$5:$B$100,ROW($B$5:$B$100)-ROW($B$5)+1)))) ->  | K153: =IF($I153="","",INDEX($C$5:$C$100,MAX(IF($I153=$B$5:$B$100,ROW($B$5:$B$100)-ROW($B$5)+1)))) -> 

Sheet Sheet1
